{"text_format":"1","workbook":"xlsx","n_sheets":6,"sheets":["Title","Sheet2","MAWA","ETWU","SLA","ETo Values"],"not_rendered":{"charts":0,"images":4,"macros":1,"external_links":0,"defined_names":5,"comments":1,"pivot_tables":0},"unopened":[],"bounds":{"document_bytes":16777216,"sheet_cells":100000,"rows_first":2000,"rows_last":500,"rows_between":2000,"halvings":0,"cell_chars":16384,"cell_head_chars":4096},"cells_cut":0,"cells_raw":0,"read":"whole","date_system":"1900"}

{"sheet":"Title","index":0,"n_rows":35,"n_cols":10,"rows_kept":35,"cut":false,"hidden":false,"merged":[]}
[]
[]
[]
[]
[]
[]
[]
[]
[]
[]
[]
[null,null,null,null,null,null,null,null,null,"Water Budget Workbook for New and Rehabilitated Non-Residential Landscapes"]
[]
[]
[null,null,null,null,null,null,null,null,null,"Beta Version 1.30"]
[]
[null,null,null,null,null,null,null,null,null,"2017-06-13"]
[]
[]
[]
[null,null,null,null,null,null,null,null,null,"Califonia Department of  Water Resources"]
[null,null,null,null,null,null,null,null,null,"Statewide Integrated Water Management"]
[null,null,null,null,null,null,null,null,null,"Water Use and Efficiency Branch"]
[]
[]
[]
[null,null,null,"This program calculates Maximum Applied Water Allowance (MAWA) and Estimated Total Water Use (ETWU) "]
[null,null,null,"based on reference evapotranspiration from Appendix A in the Model Water Efficiency Landscape Ordinance "]
[]
[]
[]
[null,null,"All information provided by the Department of Water Resources is made available to provide immediate access for the convenience of interested persons. "]
[null,null,"While the Department believes the information to be reliable, human or mechanical error remains a possibility. Therefore, the Department does not guarantee "]
[null,null,"the accuracy, completeness, timeliness, or correct sequencing of the information. Neither the Department of Water Resources nor any of the sources of the information "]
[null,null,"shall be responsible for any errors or omissions, or for the use or results obtained from the use of this information. "]

{"sheet":"Sheet2","index":1,"n_rows":2,"n_cols":1,"rows_kept":2,"cut":false,"hidden":true,"merged":[]}
["Overhead Spray"]
["Drip"]

{"sheet":"MAWA","index":2,"n_rows":33,"n_cols":10,"rows_kept":33,"cut":false,"hidden":false,"merged":[[2,7,2,9],[4,7,4,9],[1,7,1,9]]}
[]
[null,null,null,null,"Instructions",null,null,"Maximum Applied Water Allowance Calculations for New and Rehabilitated Non-Residential Landscapes"]
[null,null,null,null,"Cells with pale blue background are for entering data",null,null," Enter value in Pale Blue Cells"]
[null,null,null,null,"Results show in cells with tan background",null,null,null,"Tan Cells Show Results"]
[null,null,null,null,"Messages and warnings are displayed in cells with yellow background",null,null,"Messages and Warnings"]
[null,null,null,null,"1) Select city by clicking on blue cell and "]
[null,null,null,null,"choosing a city from the drop down menu ETo",null,null,"Click on the blue cell on right to Pick City Name","San Francisco","Name of City"]
[null,null,null,null,"appears in the tan cell below the name of the city",null,null,"ETo of City from Appendix A ",{"$f":"LOOKUP(I7,'ETo Values'!A2:A322,'ETo Values'!B2:B322)","v":35.1},"ETo (inches/year) "]
[null,null,null,null,"2) Enter square footage of overhead spray irrigated landscape area ",null,null,null,null,"Overhead Landscape Area (ft2)"]
[null,null,null,null,"3) Enter square footage of drip irrigated landscape area",null,null,null,null,"Drip Landscape Area (ft2)"]
[null,null,null,null,"4) Enter square footage of Special Landscape Area (SLA)",null,null,null,null,"SLA (ft2)"]
[null,null,null,null,null,null,null,"Total Landscape Area",{"$f":"SUM(I9:I11)","v":0}]
[null,null,null,null,null,null,null,"Results:"]
[null,null,null,null,"5) MAWA results appear in the tan cells ",null,null,"(ETo) x (0.62) x [(0.45 x LA) + (1.0 - 0.45) X SLA)]",{"$f":" IF(OR(ISBLANK(I24),I24<=0),ROUND(I8*0.62,2)*(ROUND(0.45*(I9+I10),2)+I11),\"-\")","v":0},"Gallons"]
[null,null,null,null,null,null,null,null,{"$f":"IF(I14=\"-\",\"-\",I14*0.133681)","v":0},"Cubic Feet"]
[null,null,null,null,null,null,null,null,{"$f":"IF(I14=\"-\",\"-\",I15/100)","v":0},"HCF"]
[null,null,null,null,null,null,null,null,{"$f":"IF(I14=\"-\",\"-\",I14*0.0000030689)","v":0},"Acre-feet"]
[null,null,null,null,null,null,null,null,{"$f":"IF(I14=\"-\",\"-\",I14/1000000)","v":0},"Millions of Gallons"]
[null,null,null,null,null,null,null,"MAWA calculation incorporating Effective Precipitation (Optional)"]
[null,null,null,null,null,null,null,"Precipitation (Optional)"]
[null,null,null,null,null,null,null,"ETo of City from Appendix A ",{"$f":"I8","v":35.1},"ETo (inches/year)"]
[null,null,null,null,null,null,null,"Total Landscape Area",{"$f":"I12","v":0},"LA (ft2)"]
[null,null,null,null,null,null,null,"Special Landscape Area",{"$f":"I11","v":0},"SLA (ft2)"]
[null,null,null,null,"6) If you are considering effective precipitation (Eppt), enter total annual precipitation.",null,null,null,null,"Total annual precipitiation (inches/year)"]
[null,null,null,null,"7) Eppt",null,null,"Enter Effective Precipitation",{"$f":"0.25*I24","v":0},"Eppt (in/yr)(25% of total annual precipitation)"]
[null,null,null,null,"8) For comparison, MAWA without effective "]
[null,null,null,null,"precipitation is displayed below"]
[null,null,null,null,"MAWA without Eppt (Gallons)",null,null,"Results:"]
[null,null,null,null,{"$f":"IF(I14=\"-\",I8*0.62*((0.45*(I9+I10)+I11)),\" \")","v":" "},null,null,"MAWA = [(ETo - Eppt) x (0.62)] x [(0.45 x LA) + ((1.0 - 0.45) x SLA)]",{"$f":"IF(OR(ISBLANK(I24),I24<=0),\"-\",ROUND((I21-I25)*0.62,2)*(ROUND(0.45*(I22-I23),2)+I23))","v":"-"},"Gallons"]
[null,null,null,null,null,null,null,{"$f":"IF(I25>I21,\"Check effective precipitation value\",\" \")","v":" "},{"$f":"IF(I29=\"-\",\"-\",I29*0.133681)","v":"-"},"Cubic Feet"]
[null,null,null,null,null,null,null,null,{"$f":"IF(I30=\"-\",\"-\",I30/100)","v":"-"},"HCF"]
[null,null,null,null,null,null,null,null,{"$f":"IF(I29=\"-\",\"-\",I29*0.0000030689)","v":"-"},"Acre-feet"]
[null,null,null,null,null,null,null,null,{"$f":"IF(I29=\"-\",\"-\",I29/1000000)","v":"-"},"Millions of Gallons"]

{"sheet":"ETWU","index":3,"n_rows":62,"n_cols":9,"rows_kept":62,"cut":false,"hidden":false,"merged":[[2,1,2,9],[3,1,3,9],[4,1,4,9],[5,1,5,9],[6,1,6,9]]}
[]
[]
[null,"Estimated Total Water Use"]
[null,"Equation: ETWU = ETo x 0.62 x [((PF x HA)/IE) + SLA]; Considering precipitation ETWA = (ETo-Eppt) x 0.62 x [((PF x HA)/IE) +SLA]"]
[null,"Enter values in Pale Blue Cells"]
[null,"Tan Cells Show Results"]
[null,"Messages and Warnings"]
[]
[null,null,"Irrigation Efficiency Default Value for overhead 0.75 and drip 0.81."]
[null,null,"Plant Water Use Type",null,null,"Plant Factor"]
[null,null,"Very Low",null,null,"0 - 0.1"]
[null,null,"Low",null,null,"0.2 - 0.3"]
[null,null,"Medium",null,null,"0.4 - 0.6"]
[null,null,"High",null,null,"0.7 - 1.0"]
[null,null,"SLA",null,null,1]
[]
[null,null,"Hydrozone","Select System From the Dropdown List click on cell below","Plant Water Use Type (s) (low, medium, high)","Plant Factor (PF)","Hydrozone Area (HA) (ft2) Without SLA","Irrigation Efficiency (IE)","(PF x HA (ft2))/IE"]
[null,{"$f":"IF(OR(F18<0,F18>1),\"PF should be greater than 0 and equal to or less 1.0\",\" \")","v":" "},"Zone 1",null,{"$f":"IF(AND(0.6<F18,F18<=1),\"High\",(IF(AND(0.4<=F18,F18<=0.6),\"Medium\",IF(AND(0.1<F18,F18<=0.3),\"Low\",IF(AND(0<F18,F18<=0.1),\"Very Low\",\" \")))))","v":" "},null,null,{"$f":"IF(D18=\"Overhead Spray\", 0.75,IF(D18=\"Drip\", 0.81, \" \"))","v":" "},{"$f":"IF(OR(H18=0.81,H18=0.75),F18*G18/H18, \" \")","v":" "}]
[null,{"$f":"IF(OR(F19<0,F19>1),\"PF should be greater than 0 and equal to or less 1.0\",\" \")","v":" "},"Zone 2",null,{"$f":"IF(AND(0.6<F19,F19<=1),\"High\",(IF(AND(0.4<=F19,F19<=0.6),\"Medium\",IF(AND(0.1<F19,F19<=0.3),\"Low\",IF(AND(0<F19,F19<=0.1),\"Very Low\",\" \")))))","v":" "},null,null,{"$f":"IF(D19=\"Overhead Spray\", 0.75,IF(D19=\"Drip\", 0.81, \" \"))","v":" "},{"$f":"IF(OR(H19=0.81,H19=0.75),F19*G19/H19, \" \")","v":" "}]
[null," ","Zone 3",null," ",null,null," "," "]
[null," ","Zone 4",null," ",null,null," "," "]
[null," ","Zone 5",null," ",null,null," "," "]
[null," ","Zone 6",null," ",null,null," "," "]
[null," ","Zone 7",null," ",null,null," "," "]
[null," ","Zone 8",null," ",null,null," "," "]
[null," ","Zone 9",null," ",null,null," "," "]
[null," ","Zone 10",null," ",null,null," "," "]
[null," ","Zone 11",null," ",null,null," "," "]
[null," ","Zone 12",null," ",null,null," "," "]
[null," ","Zone 13",null," ",null,null," "," "]
[null," ","Zone 14",null," ",null,null," "," "]
[null," ","Zone 15",null," ",null,null," "," "]
[null," ","Zone 16",null," ",null,null," "," "]
[null," ","Zone 17",null," ",null,null," "," "]
[null," ","Zone 18",null," ",null,null," "," "]
[null," ","Zone 19",null," ",null,null," "," "]
[null," ","Zone 20",null," ",null,null," "," "]
[null," ","Zone 21",null," ",null,null," "," "]
[null," ","Zone 22",null," ",null,null," "," "]
[null," ","Zone 23",null," ",null,null," "," "]
[null," ","Zone 24",null," ",null,null," "," "]
[null," ","Zone 25",null," ",null,null," "," "]
[null," ","Zone 26",null," ",null,null," "," "]
[null," ","Zone 27",null," ",null,null," "," "]
[null," ","Zone 28",null," ",null,null," "," "]
[null," ","Zone 29",null," ",null,null," "," "]
[null," ","Zone 30",null," ",null,null," "," "]
[null," ","Zone 31",null," ",null,null," "," "]
[null," ","Zone 32",null," ",null,null," "," "]
[null," ","Zone 33",null," ",null,null," "," "]
[null," ","Zone 34",null," ",null,null," "," "]
[null," ","Zone 35",null," ",null,null," "," "]
[null,{"$f":"IF(OR(F53<0,F53>1),\"Plant Factor should be equal to or less 1.0\",\" \")","v":" "},null,null,null,null,null,null,{"$f":"SUM(I18:I52)","v":0}]
[null,{"$f":"IF(OR(F54<0,F54>1),\"Plant Factor should be equal to or less 1.0\",\" \")","v":" "},null,null,"SLA",null,{"$f":"MAWA!I11","v":0},null,{"$f":"G54","v":0}]
[null,null,null,null,null,"Sum",{"$f":"SUM(G18:G54)","v":0}]
[null,null,null,null,null,{"$f":"IF( I53=\"-\",\"Please check the total landscape area\",IF(G55<>MAWA!I12,\"Please check the total landscape area\",\" \"))","v":" "}]
[null,"Results",null,null,null,{"$f":"IF(G55<>MAWA!I12,NA(),ROUND(MAWA!$I$8*0.62,2)*(ROUND($I53,2)+ETWU!I54))","v":0},null,null,{"$f":"IF(G55<>MAWA!I12,\"Please Check Hydrozone total landscape footage\", \" \")","v":" "}]
[null,"MAWA =",{"$f":"IF(ISBLANK(MAWA!I24),MAWA!I14,MAWA!I29)","v":0},null,"ETWU =",{"$f":"IF(MAWA!I25=0,ETWU!F57,IF(ETWU!F57=\"-\",\"-\",IF(MAWA!I25<>0,ROUND((MAWA!I8-MAWA!I25)*0.62,2)*(ETWU!I53+ETWU!I54))))","v":0},"Gallons",null,{"$f":"IF(F57=0,\" \",IF(F58<0,NA(),IF(F58<=C58,\"ETWU complies with MAWA\",IF(F58>C58,\"ETWU does not comply with MAWA\",))))","v":" "}]
[null,null,null,null,null,{"$f":"F$58*0.133681","v":0},"Cubic Feet"]
[null,null,null,null,null,{"$f":"F$59/100","v":0},"HCF"]
[null,null,null,null,null,{"$f":"F$58*0.0000030689","v":0},"Acre-feet"]
[null,null,null,null,null,{"$f":"F58/1000000","v":0},"Millions of Gallons"]

{"sheet":"SLA","index":4,"n_rows":34,"n_cols":8,"rows_kept":34,"cut":false,"hidden":false,"merged":[[4,5,4,7],[5,5,5,7],[6,5,6,7]]}
[]
[]
[null,null,null,"Instructions",null,"Maximum Applied Water Allowance Calculations for New and Rehabilitated Special Landscapes"]
[null,null,null,"This Worksheet for calculation of special landscape MAWA only  "]
[null,null,null,"Cells with pale blue background are for entering data",null," Enter value in Pale Blue Cells"]
[null,null,null,"Results show in cells with tan background",null,"Tan Cells Show Results"]
[null,null,null,"Messages and warnings are displayed in cells with yellow background",null,"Messages and Warnings"]
[null,null,null,"1) Select city by clicking on pale blue cell and "]
[null,null,null,"choosing a city from the drop down menu",null,"Click on the blue cell on right to Pick City Name","San Francisco","Name of City"]
[null,null,null,"ETo appears in the tan cell below the name of the city",null,"ETo of City from Appendix A ",{"$f":"LOOKUP(G9,'ETo Values'!A2:A322,'ETo Values'!B2:B322)","v":35.1},"ETo (inches/year) "]
[]
[null,null,null,"2) Enter Specila Landscape Area (SLA)",null,"Enter SLA",null,"SLA (ft2)"]
[null,null,null,null,null,"Results:"]
[null,null,null,"3) MAWA results appear in the tan cells ",null,"MAWA = (ETo) x (0.62) x [SLA)]",{"$f":"IF(0=G26,ROUND(G10*0.62,2)*G12,\"-\")","v":0},"Gallons"]
[null,null,null,null,null,null,{"$f":"IF(G14=\"-\",\"-\",G14*0.133681)","v":0},"Cubic Feet"]
[null,null,null,null,null,null,{"$f":"IF(G14=\"-\",\"-\",G15/100)","v":0},"HCF"]
[null,null,null,null,null,null,{"$f":"IF(G14=\"-\",\"-\",G14*0.0000030689)","v":0},"Acre-feet"]
[null,null,null,null,null,null,{"$f":"IF(G14=\"-\",\"-\",G14/1000000)","v":0},"Millions of Gallons"]
[]
[null,null,null,null,null,"MAWA calculation incorporating Effective Precipitation (Optional)"]
[]
[null,null,null,null,null,"ETo of City from Appendix A ",{"$f":"G10","v":35.1},"ETo (inches/year)"]
[null,null,null,null,null,"Speical Landscape Area",{"$f":"G12","v":0},"SLA (ft2)"]
[]
[null,null,null,"4) If you are considering effective precipitation (Eppt), enter the total annual precipition"]
[null,null,null,"5) Effective precipitation",null,"Enter Effective Precipitation",{"$f":"G25*0.25","v":0},"Eppt (in/yr)"]
[null,null,null,"6) For comparison, MAWA without effective precipitation is displayed below"]
[null,null,null,{"$f":"ROUND(G10*0.62,2)*G12","v":0}]
[null,null,null,null,null,"Results:"]
[null,null,null,"MAWA without Eppt (Gallons)",null,"MAWA=(ETo - Eppt) x (0.62) x [SLA)]",{"$f":"IF(AND(G26>0,G26<G22),ROUND((G22-G26)*0.62,2)*(G23),\"-\")","v":"-"},"Gallons"]
[null,null,null,null,null,{"$f":"IF(G26>G22,\"Check effective precipitation value\",\" \")","v":" "},{"$f":"IF(G30=\"-\",\"-\",G30*0.133681)","v":"-"},"Cubic Feet"]
[null,null,null,null,null,null,{"$f":"IF(G31=\"-\",\"-\",G31/100)","v":"-"},"HCF"]
[null,null,null,null,null,null,{"$f":"IF(G30=\"-\",\"-\",G30*0.0000030689)","v":"-"},"Acre-feet"]
[null,null,null,null,null,null,{"$f":"IF(G30=\"-\",\"-\",G30/1000000)","v":"-"},"Millions of Gallons"]

{"sheet":"ETo Values","index":5,"n_rows":322,"n_cols":2,"rows_kept":322,"cut":false,"hidden":true,"merged":[]}
["City  "," Annual ETo  "]
["Alpaugh",51.6]
["Angwin",54.9]
["Arroyo Grande",40]
["Arroyo Seco",52.6]
["Arvin",51.9]
["Atascadero",43.7]
["Auburn",50.6]
["Badger",47.3]
["Baker",86.6]
["Bakersfield",52.4]
["Barstow",71.7]
["Beaumont",55]
["Belridge",59.2]
["Benicia",40.299999999999997]
["Bennett Valley",44.4]
["Betteravia",49.1]
["Big Bear Lake",58.6]
["Bishop",68.3]
["Black Point",43]
["Blackwells Corner",56.6]
["Blue Canyon",40.5]
["Blythe",71.400000000000006]
["Bonanza",57.9]
["Brawley",84.2]
["Brentwood",48.3]
["Bridgeport",43]
["Browns Valley",52.9]
["Brownsville",47.4]
["Bryte",51]
["Buntingville",51.8]
["Burbank",51.7]
["Burney",40.9]
["Buttonwillow",52]
["Calipatria",70.7]
["Camarillo",46.1]
["Camino",47.3]
["Carneros",45.8]
["Carpenteria",44.9]
["Caruthers",62.7]
["Castroville",36.200000000000003]
["Cathedral City",57.1]
["Chico",51.7]
["China Lake",74.8]
["Chino",54.6]
["Chowchilla",51.4]
["Chula Vista",44.2]
["Claremont",51.3]
["Cloverdale",40.700000000000003]
["Clovis",51.4]
["Coachella",88.1]
["Coalinga",50.9]
["Colfax",47.9]
["Colusa",52.8]
["Concord",43.4]
["Corcoran",57.1]
["Corning",50.7]
["Coulterville",48.8]
["Courtland",48]
["Crescent City",27.7]
["Crestline",50.8]
["Cuyama",59.7]
["Davis",52.5]
["De Laveaga",40.799999999999997]
["Death Valley Jct",79.099999999999994]
["Delano",52]
["Delano",53.6]
["Denair",51.4]
["Desert Center",90]
["Dinuba",51.2]
["Dixon",52.1]
["Downieville",41.3]
["Durham",51.1]
["El Centro",81.7]
["El Dorado",46.3]
["Elsinore",55]
["Escondido SPV",54.2]
["Esparto",55.8]
["Eureka",27.5]
["Fair Oaks",50.5]
["Fairfield",45.2]
["Fall River Mills",41.8]
["Famoso",53.1]
["Farmington",50]
["Ferndale",27.5]
["Firebaugh",55.4]
["FivePoints",60.4]
["Fort Bragg",29]
["Fort Ross",31.9]
["Fremont",47]
["Fresno",51.1]
["Fresno State",53.7]
["Friant",51.3]
["Garberville",34.9]
["Gerber",54.7]
["Gerber Dryland",55.5]
["Gilroy",43.6]
["Glenburn",42.1]
["Glendale",43.7]
["Glendora",53.1]
["Goleta",48.1]
["Goleta Foothills",49.6]
["Gonzales",45.7]
["Gorman",52.4]
["Grapevine",49.5]
["Grass Valley",48]
["Green Valley Rd",40.6]
["Greenfield",49.5]
["Greenlee",57.9]
["Gridley",51.9]
["Groveland",47.5]
["Guadalupe",41.1]
["Half Moon Bay",33.700000000000003]
["Hanford",51.5]
["Happy Camp",35.1]
["Hastings Tract",57.1]
["Hay Fork",40.1]
["Healdsburg",40.799999999999997]
["Hollister",45.1]
["Hollywood Hills",52.8]
["Holtville",84.7]
["Hoopa",35.6]
["Hopland",40.9]
["Independence",65.2]
["Indio",83.9]
["Inyokern",72.400000000000006]
["Irvine",49.6]
["Isabella Dam",48.4]
["Jackson",48.9]
["Kerman",51.2]
["Kesterson",55.1]
["Kettleman",60.2]
["King City",49.6]
["King City-Oasis Rd",52.7]
["Kingsburg",51.6]
["La Grange",51.2]
["La Quinta",66.2]
["Laguna Beach",43.2]
["Lake Arrowhead",58.6]
["Lakeport",42.8]
["Lamont",54.4]
["Lancaster",71.099999999999994]
["Lemoore",51.7]
["Lincoln",51.9]
["Lindcove",50.6]
["Livermore",47.2]
["Lodi West'",46.7]
["Lompoc",41.1]
["Long Beach",39.700000000000003]
["Long Valley",49.1]
["Los Alamos",44.6]
["Los Angeles",50.1]
["Los Banos",50]
["Los Gatos",42.9]
["Lost Hills",57.1]
["Lower Haiwee Res",67.599999999999994]
["Lower Lake",45.4]
["Lucerne Valley",75.3]
["MacDoel",49]
["Madera",51.5]
["Manteca",51.2]
["Mariposa",49]
["Markleeville",40.6]
["Martinez",41.8]
["McArthur",46.8]
["McFarland/kern",56.5]
["Mecca",70.8]
["Meloland",71.599999999999994]
["Mendota",61.7]
["Merced",51.5]
["Miramar",47.1]
["Modesto",49.7]
["Modoc/Alturas",43.2]
["Monrovia",50.2]
["Monterey",36]
["Moraga",44.9]
["Morgan Hill",49.5]
["Morro Bay",39.9]
["Mt Shasta",36]
["Mulberry",70.7]
["Needles",92.1]
["Nevada City",47.4]
["Newberry Springs",78.2]
["Newman",49.3]
["Nicolaus",50.2]
["Nipomo",52.1]
["Novato",39.799999999999997]
["Oakdale",50.3]
["Oakland",41.8]
["Oakland Foothills",39.6]
["Oakville",47.7]
["Oasis",83.1]
["Oasis",68.400000000000006]
["Oceanside",42.9]
["Orange Cove",56.7]
["Orland",52.1]
["Oroville",51.5]
["Otay Lake",50.4]
["Oxnard",42.3]
["Pajaro",46.1]
["Palm Deser",71.599999999999994]
["Palm Springs",71.099999999999994]
["Palmdale",66.2]
["Palo Alto",43]
["Palo Verde II",68.2]
["Panoche",57.2]
["Parlier",52]
["Pasadena",52.3]
["Paso Robles",49]
["Patterson",57.3]
["Pearblossom",59.9]
["Petaluma",39.6]
["Pick a City",0]
["Pine Valley",54.8]
["Piru",61.5]
["Pittsburg",45.4]
["Pleasanton",46.2]
["Point Arena",29.6]
["Point San Pedro",43]
["Pomona",47.5]
["Port Hueneme",43.5]
["Porterville",52.1]
["Portola",39.4]
["Putah Creek",51]
["Quincy",40.200000000000003]
["Ramona",51.6]
["Rancho California",49.5]
["Rancho Mirage",71.400000000000006]
["Ravendale",44.9]
["Raymond",50.5]
["Red Bluff",51.1]
["Redding",48.8]
["Redondo Beach",42.6]
["Redwood City",42.8]
["Reedley",51.3]
["Rio Vista",47]
["Ripley",67.8]
["Riverside",56.4]
["Roseville",52.2]
["Sacramento",51.9]
["Salinas",39.1]
["Salinas North",36.9]
["Salton Sea North",71.7]
["San Andreas",48.8]
["San Ardo",49]
["San Benito",47.2]
["San Bernardino",55.6]
["San Diego",46.5]
["San Fernando",52]
["San Francisco",35.1]
["San Jose",45.3]
["San Juan",44.2]
["San Juan Valley",49.1]
["San Luis Obispo",43.8]
["San Miguel",49]
["San Rafael",35.799999999999997]
["San Simeon",38.1]
["Sanel Valley",49.1]
["Santa Ana",48.2]
["Santa Barbara",40.6]
["Santa Clarita",61.5]
["Santa Cruz",36.6]
["Santa Maria",47.4]
["Santa Monica",44.2]
["Santa Rosa",42]
["Santa Ynez",48.7]
["Santee",51.1]
["Seeley",75.400000000000006]
["Shafter",52.1]
["Shanandoah Valley",48.8]
["Sierraville",39.6]
["Sisquoc",49.2]
["Soda Springs",35.4]
["Soledad",47.7]
["Solvang",45.6]
["Sonora",47.6]
["St Helena",44.1]
["Stockton",49.1]
["Stratford",58.7]
["Suisun Valley",48.3]
["Susanville",44]
["Taft",51.2]
["Tahoe City",35.5]
["Tehachapi",52.9]
["Temecula",56.7]
["Thermal",72.8]
["Thousand Oaks",51]
["Torrey Pines",39.799999999999997]
["Tracy",48.5]
["Truckee",36.200000000000003]
["Tule Lake",42.9]
["Turlock",50.2]
["Twentynine Palms",82.9]
["Twitchell Islands",57.9]
["Ukiah",40.9]
["Union City",44.2]
["Valley of the Moon",46.1]
["Ventura",43.5]
["Victorville",66.2]
["Visalia",50.7]
["Walnut Creek",46.2]
["Warner Springs",56]
["Watsonville",37.700000000000003]
["Weaverville",40]
["Webb",46.2]
["Weed",34.9]
["Westlands",58.8]
["Westmoreland",71.400000000000006]
["Williams",50.8]
["Williows",51.3]
["Winchester",56.8]
["Windsor",44.2]
["Winters",51]
["Winters",49.4]
["Woodland",51.6]
["Woodside",49.5]
["Yosemite Village",41.4]
["Yountville",44.3]
["Yreka",39.200000000000003]
["Yuba City",46.7]
["Yuma",71.599999999999994]
["Zamora",52.8]